[Event "Titled Tuesday Blitz March 28 Early 2023"]
[White "Barria Santos, Jose Guilherme"]
[Black "Bogaudinov, Rushan"]
[WhiteFideId "1939300"]
[BlackFideId "4129288"]
[WhiteElo "2301"]
[BlackElo "1949"]
[Result "0-1"]
[Round "07"]
[TimeControl "180+2"]
[Date "2023.03.28"]
[WhiteClock "0:00:04"]
[BlackClock "0:01:15"]

1. e4 {[%clk 0:02:58]}  c5 {[%clk 0:02:59]} 2. Nf3 {[%clk 0:02:58]}  e6 {[%clk 0:02:59]} 3. d4 {[%clk 0:02:59]}  cxd4 {[%clk 0:03:00]} 4. Nxd4 {[%clk 0:02:59]}  a6 {[%clk 0:03:01]} 5. Nc3 {[%clk 0:02:58]}  b5 {[%clk 0:03:01]} 6. Bd3 {[%clk 0:02:58]}  Bb7 {[%clk 0:03:01]} 7. O-O {[%clk 0:02:56]}  Nc6 {[%clk 0:03:00]} 8. Nf3 {[%clk 0:02:52]}  Qc7 {[%clk 0:02:59]} 9. a3 {[%clk 0:02:42]}  Nf6 {[%clk 0:02:59]} 10. Bg5 {[%clk 0:02:38]}  Be7 {[%clk 0:02:59]} 11. Re1 {[%clk 0:02:34]}  h6 {[%clk 0:02:59]} 12. Bh4 {[%clk 0:02:33]}  d6 {[%clk 0:02:51]} 13. Bg3 {[%clk 0:02:33]}  Ne5 {[%clk 0:02:50]} 14. Nxe5 {[%clk 0:02:30]}  dxe5 {[%clk 0:02:50]} 15. Qe2 {[%clk 0:02:29]}  O-O {[%clk 0:02:49]} 16. Rad1 {[%clk 0:02:21]}  Rfd8 {[%clk 0:02:48]} 17. Nb1 {[%clk 0:02:05]}  Rd7 {[%clk 0:02:44]} 18. Nd2 {[%clk 0:02:05]}  Rad8 {[%clk 0:02:44]} 19. Nf3 {[%clk 0:02:05]}  Bd6 {[%clk 0:02:43]} 20. c3 {[%clk 0:01:49]}  Qc5 {[%clk 0:02:40]} 21. Bc2 {[%clk 0:01:46]}  Bc7 {[%clk 0:02:36]} 22. Bh4 {[%clk 0:01:27]}  Rxd1 {[%clk 0:02:32]} 23. Rxd1 {[%clk 0:01:26]}  Rxd1+ {[%clk 0:02:33]} 24. Qxd1 {[%clk 0:01:19]}  Bxe4 {[%clk 0:02:08]} 25. Bxf6 {[%clk 0:01:00]}  Bxc2 {[%clk 0:02:05]} 26. Qxc2 {[%clk 0:01:01]}  gxf6 {[%clk 0:02:05]} 27. Qe4 {[%clk 0:00:56]}  Qd5 {[%clk 0:02:02]} 28. Qg4+ {[%clk 0:00:43]}  Kf8 {[%clk 0:02:01]} 29. g3 {[%clk 0:00:36]}  Ke7 {[%clk 0:01:47]} 30. Qh5 {[%clk 0:00:15]}  Qd1+ {[%clk 0:01:37]} 31. Kg2 {[%clk 0:00:15]}  e4 {[%clk 0:01:37]} 32. Qc5+ {[%clk 0:00:14]}  Bd6 {[%clk 0:01:34]} 33. Qa7+ {[%clk 0:00:14]}  Kf8 {[%clk 0:01:34]} 34. Nd4 {[%clk 0:00:13]}  e5 {[%clk 0:01:31]} 35. Nf5 {[%clk 0:00:11]}  Qf3+ {[%clk 0:01:31]} 36. Kg1 {[%clk 0:00:03]}  Qxf5 {[%clk 0:01:30]} 37. Qxa6 {[%clk 0:00:03]}  Qd7 {[%clk 0:01:28]} 38. Qa8+ {[%clk 0:00:03]}  Ke7 {[%clk 0:01:28]} 39. Qxe4 {[%clk 0:00:03]}  Bc5 {[%clk 0:01:26]} 40. c4 {[%clk 0:00:03]}  bxc4 {[%clk 0:01:22]} 41. Qxc4 {[%clk 0:00:04]}  Qc6 {[%clk 0:01:16]} 42. b4 {[%clk 0:00:04]}  Bxf2+ {[%clk 0:01:15]} 0-1


[Site "https://www.chess.com"]

[Event "Titled Tuesday Blitz March 28 Early 2023"]
[White "Schut, Han"]
[Black "Chemin, Justo Reinaldo"]
[WhiteFideId "1005561"]
[BlackFideId "2101580"]
[WhiteElo "2024"]
[BlackElo "1940"]
[Result "1-0"]
[Round "07"]
[TimeControl "180+2"]
[Date "2023.03.28"]
[WhiteClock "0:00:12"]
[BlackClock "0:00:12"]

1. e4 {[%clk 0:03:00]}  e6 {[%clk 0:02:59]} 2. d4 {[%clk 0:03:00]}  d5 {[%clk 0:02:59]} 3. e5 {[%clk 0:03:00]}  c5 {[%clk 0:02:58]} 4. c3 {[%clk 0:03:01]}  Qb6 {[%clk 0:02:58]} 5. Nf3 {[%clk 0:03:01]}  Bd7 {[%clk 0:02:58]} 6. a4 {[%clk 0:02:57]}  Nc6 {[%clk 0:02:56]} 7. Be2 {[%clk 0:02:26]}  c4 {[%clk 0:02:35]} 8. O-O {[%clk 0:02:21]}  Nge7 {[%clk 0:02:34]} 9. Ng5 {[%clk 0:02:08]}  h6 {[%clk 0:02:29]} 10. Nh3 {[%clk 0:02:09]}  Nf5 {[%clk 0:02:16]} 11. f4 {[%clk 0:02:01]}  O-O-O {[%clk 0:02:08]} 12. g4 {[%clk 0:01:50]}  Nfe7 {[%clk 0:01:59]} 13. Nd2 {[%clk 0:01:42]}  f6 {[%clk 0:01:51]} 14. Bxc4 {[%clk 0:01:42]}  fxe5 {[%clk 0:01:43]} 15. fxe5 {[%clk 0:01:32]}  dxc4 {[%clk 0:01:36]} 16. Nxc4 {[%clk 0:01:32]}  Qc7 {[%clk 0:01:34]} 17. Nd6+ {[%clk 0:01:32]}  Kb8 {[%clk 0:01:34]} 18. Nf7 {[%clk 0:01:32]}  Be8 {[%clk 0:00:53]} 19. Nxd8 {[%clk 0:01:22]}  Qxd8 {[%clk 0:00:51]} 20. Nf4 {[%clk 0:01:22]}  Bd7 {[%clk 0:00:44]} 21. Qb3 {[%clk 0:01:15]}  Nd5 {[%clk 0:00:40]} 22. Nxd5 {[%clk 0:01:07]}  exd5 {[%clk 0:00:40]} 23. Qxd5 {[%clk 0:01:07]}  Bxg4 {[%clk 0:00:36]} 24. Qxd8+ {[%clk 0:01:07]}  Nxd8 {[%clk 0:00:35]} 25. Bf4 {[%clk 0:01:05]}  Ne6 {[%clk 0:00:29]} 26. Bg3 {[%clk 0:01:04]}  Be2 {[%clk 0:00:21]} 27. Rf2 {[%clk 0:00:52]}  Bc4 {[%clk 0:00:20]} 28. Rd1 {[%clk 0:00:42]}  Ng5 {[%clk 0:00:19]} 29. d5 {[%clk 0:00:36]}  Nh3+ {[%clk 0:00:18]} 30. Kg2 {[%clk 0:00:37]}  Nxf2 {[%clk 0:00:18]} 31. Kxf2 {[%clk 0:00:23]}  Bc5+ {[%clk 0:00:17]} 32. Kg2 {[%clk 0:00:18]}  Rd8 {[%clk 0:00:12]} 33. b4 {[%clk 0:00:12]} 1-0


[Site "https://www.chess.com"]

[Event "Titled Tuesday Blitz March 28 Early 2023"]
[White "Lohani, Sujana"]
[Black "Abrosimov, Vladimir"]
[WhiteFideId "12311987"]
[BlackFideId "4166892"]
[WhiteElo "1718"]
[BlackElo "2336"]
[Result "0-1"]
[Round "07"]
[TimeControl "180+2"]
[Date "2023.03.28"]
[WhiteClock "0:00:02"]
[BlackClock "0:01:17"]

1. d4 {[%clk 0:02:06]}  Nf6 {[%clk 0:02:59]} 2. Nf3 {[%clk 0:02:05]}  g6 {[%clk 0:02:59]} 3. c4 {[%clk 0:02:00]}  Bg7 {[%clk 0:03:00]} 4. g3 {[%clk 0:01:56]}  d6 {[%clk 0:03:00]} 5. Bg2 {[%clk 0:01:57]}  Nbd7 {[%clk 0:03:00]} 6. O-O {[%clk 0:01:57]}  O-O {[%clk 0:03:00]} 7. Nc3 {[%clk 0:01:58]}  c6 {[%clk 0:03:01]} 8. e4 {[%clk 0:01:57]}  e5 {[%clk 0:03:00]} 9. d5 {[%clk 0:01:56]}  c5 {[%clk 0:03:00]} 10. Ne1 {[%clk 0:01:56]}  Ne8 {[%clk 0:02:52]} 11. f4 {[%clk 0:01:53]}  f5 {[%clk 0:02:52]} 12. exf5 {[%clk 0:01:47]}  gxf5 {[%clk 0:02:51]} 13. Nf3 {[%clk 0:01:32]}  e4 {[%clk 0:02:50]} 14. Ng5 {[%clk 0:01:31]}  Ndf6 {[%clk 0:02:48]} 15. Kh1 {[%clk 0:01:23]}  h6 {[%clk 0:02:48]} 16. Nh3 {[%clk 0:01:21]}  Nc7 {[%clk 0:02:44]} 17. Nf2 {[%clk 0:01:10]}  a6 {[%clk 0:02:43]} 18. Qe2 {[%clk 0:00:50]}  Re8 {[%clk 0:02:43]} 19. h3 {[%clk 0:00:41]}  Qd7 {[%clk 0:02:39]} 20. a4 {[%clk 0:00:40]}  Qf7 {[%clk 0:02:39]} 21. a5 {[%clk 0:00:37]}  Nh5 {[%clk 0:02:38]} 22. Kh2 {[%clk 0:00:28]}  Qg6 {[%clk 0:02:36]} 23. g4 {[%clk 0:00:28]}  Nf6 {[%clk 0:02:32]} 24. gxf5 {[%clk 0:00:24]}  Bxf5 {[%clk 0:02:33]} 25. Rg1 {[%clk 0:00:19]}  Qf7 {[%clk 0:02:09]} 26. Be3 {[%clk 0:00:18]}  Kh7 {[%clk 0:02:05]} 27. Ng4 {[%clk 0:00:17]}  Rg8 {[%clk 0:01:55]} 28. Nxf6+ {[%clk 0:00:15]}  Bxf6 {[%clk 0:01:56]} 29. Bf1 {[%clk 0:00:15]}  Rxg1 {[%clk 0:01:53]} 30. Bxg1 {[%clk 0:00:14]}  Re8 {[%clk 0:01:35]} 31. Na4 {[%clk 0:00:13]}  Bd4 {[%clk 0:01:30]} 32. Bg2 {[%clk 0:00:11]}  Qf6 {[%clk 0:01:25]} 33. Re1 {[%clk 0:00:06]}  Re7 {[%clk 0:01:18]} 34. h4 {[%clk 0:00:02]}  Qxh4+ {[%clk 0:01:17]} 0-1


[Site "https://www.chess.com"]

[Event "Titled Tuesday Blitz March 28 Early 2023"]
[White "Maranhao,Jose Renato Ruiz"]
[Black "Simonovic, Miroslav"]
[WhiteFideId "2135175"]
[BlackFideId "919152"]
[WhiteElo "1970"]
[BlackElo "2042"]
[Result "0-1"]
[Round "07"]
[TimeControl "180+2"]
[Date "2023.03.28"]
[WhiteClock "0:00:03"]
[BlackClock "0:00:20"]

1. e4 {[%clk 0:03:00]}  c5 {[%clk 0:03:00]} 2. d4 {[%clk 0:03:00]}  cxd4 {[%clk 0:03:00]} 3. c3 {[%clk 0:03:00]}  dxc3 {[%clk 0:03:01]} 4. Nxc3 {[%clk 0:03:01]}  Nc6 {[%clk 0:03:01]} 5. Nf3 {[%clk 0:03:02]}  d6 {[%clk 0:03:02]} 6. Bc4 {[%clk 0:03:02]}  e6 {[%clk 0:03:03]} 7. O-O {[%clk 0:03:02]}  Be7 {[%clk 0:03:03]} 8. Qe2 {[%clk 0:03:02]}  Nf6 {[%clk 0:03:04]} 9. Rd1 {[%clk 0:03:02]}  Qa5 {[%clk 0:03:04]} 10. a3 {[%clk 0:02:52]}  a6 {[%clk 0:03:03]} 11. b4 {[%clk 0:02:52]}  Qh5 {[%clk 0:03:03]} 12. b5 {[%clk 0:02:17]}  axb5 {[%clk 0:03:02]} 13. Nxb5 {[%clk 0:02:16]}  O-O {[%clk 0:03:00]} 14. Nxd6 {[%clk 0:02:10]}  Bxd6 {[%clk 0:03:01]} 15. Rxd6 {[%clk 0:02:09]}  Ne5 {[%clk 0:03:02]} 16. Nxe5 {[%clk 0:02:01]}  Qxe5 {[%clk 0:03:02]} 17. Bb2 {[%clk 0:01:50]}  Qxd6 {[%clk 0:03:01]} 18. e5 {[%clk 0:01:50]}  Qc5 {[%clk 0:02:09]} 19. exf6 {[%clk 0:01:48]}  b5 {[%clk 0:01:27]} 20. fxg7 {[%clk 0:01:19]}  Rd8 {[%clk 0:01:13]} 21. Bxb5 {[%clk 0:00:47]}  Rb8 {[%clk 0:01:11]} 22. a4 {[%clk 0:00:38]}  Qg5 {[%clk 0:00:47]} 23. Be5 {[%clk 0:00:17]}  Bb7 {[%clk 0:00:45]} 24. f4 {[%clk 0:00:13]}  Qg6 {[%clk 0:00:30]} 25. Bxb8 {[%clk 0:00:12]}  Rxb8 {[%clk 0:00:31]} 26. a5 {[%clk 0:00:06]}  Bd5 {[%clk 0:00:23]} 27. a6 {[%clk 0:00:04]}  Qxg7 {[%clk 0:00:23]} 28. Qe5 {[%clk 0:00:03]}  Rxb5 {[%clk 0:00:20]} 0-1


[Site "https://www.chess.com"]

[Event "Titled Tuesday Blitz March 28 Early 2023"]
[White "Nan, M K Khine Hlyan"]
[Black "Vemparala, Nikash"]
[WhiteFideId "13002899"]
[BlackFideId "30960967"]
[WhiteElo "1943"]
[BlackElo "2023"]
[Result "0-1"]
[Round "07"]
[TimeControl "180+2"]
[Date "2023.03.28"]
[WhiteClock "0:00:11"]
[BlackClock "0:00:52"]

1. e4 {[%clk 0:02:59]}  e5 {[%clk 0:02:58]} 2. Nf3 {[%clk 0:02:58]}  Nc6 {[%clk 0:02:58]} 3. Bb5 {[%clk 0:02:58]}  Nf6 {[%clk 0:02:56]} 4. O-O {[%clk 0:02:55]}  Nxe4 {[%clk 0:02:56]} 5. Re1 {[%clk 0:02:55]}  Nd6 {[%clk 0:02:54]} 6. Bxc6 {[%clk 0:02:54]}  dxc6 {[%clk 0:02:55]} 7. Nxe5 {[%clk 0:02:51]}  Be7 {[%clk 0:02:54]} 8. d4 {[%clk 0:02:50]}  O-O {[%clk 0:02:52]} 9. c4 {[%clk 0:02:48]}  Be6 {[%clk 0:02:43]} 10. c5 {[%clk 0:02:35]}  Nf5 {[%clk 0:02:39]} 11. Nc3 {[%clk 0:02:35]}  Qxd4 {[%clk 0:02:32]} 12. Qf3 {[%clk 0:02:22]}  Bxc5 {[%clk 0:02:03]} 13. Nd3 {[%clk 0:01:35]}  Bb6 {[%clk 0:01:59]} 14. Bf4 {[%clk 0:01:19]}  Bd5 {[%clk 0:01:39]} 15. Qh3 {[%clk 0:01:12]}  Bc4 {[%clk 0:01:11]} 16. Qxf5 {[%clk 0:00:51]}  Bxd3 {[%clk 0:01:08]} 17. Ne4 {[%clk 0:00:19]}  Bxe4 {[%clk 0:00:59]} 18. Rxe4 {[%clk 0:00:19]}  Qxf2+ {[%clk 0:00:58]} 19. Kh1 {[%clk 0:00:19]}  Rae8 {[%clk 0:00:54]} 20. Rxe8 {[%clk 0:00:19]}  Rxe8 {[%clk 0:00:53]} 21. Qd3 {[%clk 0:00:11]}  Re1+ {[%clk 0:00:52]} 0-1


[Site "https://www.chess.com"]

[Event "Titled Tuesday Blitz March 28 Early 2023"]
[White "Sabar, Ethmane Daouda"]
[Black "Prado, Alexandra"]
[WhiteFideId "19600097"]
[BlackFideId "3301346"]
[WhiteElo "1950"]
[BlackElo "1759"]
[Result "1-0"]
[Round "07"]
[TimeControl "180+2"]
[Date "2023.03.28"]
[WhiteClock "0:00:55"]
[BlackClock "0:00:03"]

1. b3 {[%clk 0:03:00]}  e5 {[%clk 0:02:50]} 2. Bb2 {[%clk 0:03:01]}  Nc6 {[%clk 0:02:48]} 3. e3 {[%clk 0:03:00]}  d5 {[%clk 0:02:46]} 4. Bb5 {[%clk 0:03:00]}  Bd6 {[%clk 0:02:43]} 5. f4 {[%clk 0:02:59]}  Qe7 {[%clk 0:02:27]} 6. Nf3 {[%clk 0:02:57]}  f6 {[%clk 0:01:56]} 7. Nc3 {[%clk 0:02:46]}  Be6 {[%clk 0:01:39]} 8. fxe5 {[%clk 0:02:43]}  fxe5 {[%clk 0:01:30]} 9. e4 {[%clk 0:02:43]}  Nf6 {[%clk 0:01:11]} 10. exd5 {[%clk 0:02:31]}  Nxd5 {[%clk 0:01:12]} 11. O-O {[%clk 0:02:17]}  O-O-O {[%clk 0:01:05]} 12. Bxc6 {[%clk 0:02:07]}  bxc6 {[%clk 0:01:04]} 13. Qe2 {[%clk 0:02:06]}  Nb6 {[%clk 0:00:29]} 14. Qa6+ {[%clk 0:01:50]}  Kb8 {[%clk 0:00:25]} 15. Na4 {[%clk 0:01:51]}  Bc8 {[%clk 0:00:16]} 16. Qa5 {[%clk 0:01:40]}  Bb4 {[%clk 0:00:11]} 17. Qxe5 {[%clk 0:01:39]}  Qxe5 {[%clk 0:00:11]} 18. Bxe5 {[%clk 0:01:39]}  Rhe8 {[%clk 0:00:08]} 19. Nc3 {[%clk 0:01:22]}  g5 {[%clk 0:00:05]} 20. Rfe1 {[%clk 0:01:16]}  g4 {[%clk 0:00:05]} 21. Nd4 {[%clk 0:01:09]}  Kb7 {[%clk 0:00:03]} 22. a3 {[%clk 0:01:02]}  Bxc3 {[%clk 0:00:03]} 23. dxc3 {[%clk 0:01:03]}  Nd5 {[%clk 0:00:03]} 24. c4 {[%clk 0:00:55]} 1-0


[Site "https://www.chess.com"]

[Event "Titled Tuesday Blitz March 28 Early 2023"]
[White "Necula, Iulian"]
[Black "Ramirez, Maria Eugenia"]
[WhiteFideId "1232380"]
[BlackFideId "3301680"]
[WhiteElo "1790"]
[BlackElo "1842"]
[Result "0-1"]
[Round "07"]
[TimeControl "180+2"]
[Date "2023.03.28"]
[WhiteClock "0:00:07"]
[BlackClock "0:00:24"]

1. d4 {[%clk 0:03:00]}  Nf6 {[%clk 0:02:59]} 2. Nc3 {[%clk 0:03:01]}  e6 {[%clk 0:02:59]} 3. Bf4 {[%clk 0:03:01]}  c5 {[%clk 0:02:59]} 4. e3 {[%clk 0:02:58]}  Nc6 {[%clk 0:02:57]} 5. Nf3 {[%clk 0:02:54]}  d5 {[%clk 0:02:57]} 6. Bb5 {[%clk 0:02:48]}  Bd6 {[%clk 0:02:50]} 7. Ne5 {[%clk 0:02:47]}  Bxe5 {[%clk 0:02:47]} 8. dxe5 {[%clk 0:02:47]}  Nd7 {[%clk 0:02:45]} 9. Bxc6 {[%clk 0:02:44]}  bxc6 {[%clk 0:02:44]} 10. h4 {[%clk 0:02:41]}  Qc7 {[%clk 0:02:40]} 11. Qg4 {[%clk 0:02:34]}  Kf8 {[%clk 0:02:29]} 12. Qg3 {[%clk 0:02:33]}  Ba6 {[%clk 0:02:24]} 13. f3 {[%clk 0:02:18]}  Rb8 {[%clk 0:02:23]} 14. Rb1 {[%clk 0:02:17]}  Qa5 {[%clk 0:02:20]} 15. Kf2 {[%clk 0:02:16]}  d4 {[%clk 0:02:10]} 16. exd4 {[%clk 0:02:03]}  cxd4 {[%clk 0:02:10]} 17. Ne4 {[%clk 0:01:52]}  Qb6 {[%clk 0:02:05]} 18. Nd6 {[%clk 0:01:22]}  d3+ {[%clk 0:02:02]} 19. Be3 {[%clk 0:01:22]}  Qa5 {[%clk 0:01:51]} 20. c3 {[%clk 0:01:21]}  Qxe5 {[%clk 0:01:46]} 21. Qxe5 {[%clk 0:01:20]}  Nxe5 {[%clk 0:01:46]} 22. Rhd1 {[%clk 0:00:56]}  Ke7 {[%clk 0:01:31]} 23. Bc5 {[%clk 0:00:55]}  Kd7 {[%clk 0:01:30]} 24. Ba3 {[%clk 0:00:54]}  f5 {[%clk 0:01:18]} 25. g3 {[%clk 0:00:52]}  h6 {[%clk 0:01:17]} 26. h5 {[%clk 0:00:51]}  g5 {[%clk 0:01:14]} 27. hxg6 {[%clk 0:00:50]}  Nxg6 {[%clk 0:01:14]} 28. Ke3 {[%clk 0:00:50]}  h5 {[%clk 0:01:11]} 29. c4 {[%clk 0:00:50]}  Ne5 {[%clk 0:01:07]} 30. b3 {[%clk 0:00:44]}  Rbg8 {[%clk 0:01:06]} 31. Rg1 {[%clk 0:00:43]}  Rh7 {[%clk 0:00:55]} 32. f4 {[%clk 0:00:43]}  Ng4+ {[%clk 0:00:55]} 33. Kxd3 {[%clk 0:00:43]}  h4 {[%clk 0:00:53]} 34. gxh4 {[%clk 0:00:43]}  Rxh4 {[%clk 0:00:53]} 35. Rge1 {[%clk 0:00:36]}  Rh3+ {[%clk 0:00:52]} 36. Kc2 {[%clk 0:00:31]}  Rh2+ {[%clk 0:00:51]} 37. Kc3 {[%clk 0:00:31]}  Nf2 {[%clk 0:00:49]} 38. Re3 {[%clk 0:00:25]}  Rgg2 {[%clk 0:00:44]} 39. Kb4 {[%clk 0:00:23]}  Ng4 {[%clk 0:00:34]} 40. Bc1 {[%clk 0:00:17]}  Nxe3 {[%clk 0:00:32]} 41. Bxe3 {[%clk 0:00:18]}  Kxd6 {[%clk 0:00:32]} 42. c5+ {[%clk 0:00:19]}  Kc7 {[%clk 0:00:32]} 43. Ka5 {[%clk 0:00:20]}  Bb5 {[%clk 0:00:32]} 44. Kb4 {[%clk 0:00:20]}  Rxa2 {[%clk 0:00:29]} 45. Rd1 {[%clk 0:00:19]}  a5+ {[%clk 0:00:28]} 46. Kc3 {[%clk 0:00:18]}  Rhc2+ {[%clk 0:00:28]} 47. Kd4 {[%clk 0:00:18]}  Rab2 {[%clk 0:00:27]} 48. Ke5 {[%clk 0:00:16]}  Rxb3 {[%clk 0:00:26]} 49. Bg1 {[%clk 0:00:16]}  Re2+ {[%clk 0:00:25]} 50. Kf6 {[%clk 0:00:16]}  Rd3 {[%clk 0:00:25]} 51. Rc1 {[%clk 0:00:15]}  a4 {[%clk 0:00:25]} 52. Ra1 {[%clk 0:00:12]}  a3 {[%clk 0:00:24]} 53. Ke7 {[%clk 0:00:11]}  a2 {[%clk 0:00:24]} 54. Kf6 {[%clk 0:00:10]}  Rb3 {[%clk 0:00:24]} 55. Bd4 {[%clk 0:00:08]}  Rb1 {[%clk 0:00:24]} 56. Ke7 {[%clk 0:00:06]}  Rxa1 {[%clk 0:00:24]} 57. Bxa1 {[%clk 0:00:07]}  Re1 {[%clk 0:00:24]} 0-1


[Site "https://www.chess.com"]

[Event "Titled Tuesday Blitz March 28 Early 2023"]
[White "Perez Cruz, Adianet"]
[Black "Bashirli, Saadat"]
[WhiteFideId "3510115"]
[BlackFideId "13429990"]
[WhiteElo "1992"]
[BlackElo "1408"]
[Result "1/2-1/2"]
[Round "07"]
[TimeControl "180+2"]
[Date "2023.03.28"]
[WhiteClock "0:00:24"]
[BlackClock "0:00:31"]

1. d4 {[%clk 0:03:00]}  d5 {[%clk 0:02:59]} 2. Nf3 {[%clk 0:03:00]}  e6 {[%clk 0:02:59]} 3. Bf4 {[%clk 0:03:00]}  c5 {[%clk 0:02:59]} 4. c3 {[%clk 0:02:58]}  Nf6 {[%clk 0:02:59]} 5. e3 {[%clk 0:02:58]}  Nc6 {[%clk 0:02:58]} 6. Nbd2 {[%clk 0:02:59]}  cxd4 {[%clk 0:02:55]} 7. exd4 {[%clk 0:02:58]}  Bd6 {[%clk 0:02:54]} 8. Bg3 {[%clk 0:02:57]}  Bxg3 {[%clk 0:02:54]} 9. hxg3 {[%clk 0:02:58]}  Qc7 {[%clk 0:02:52]} 10. Bd3 {[%clk 0:02:58]}  e5 {[%clk 0:02:52]} 11. dxe5 {[%clk 0:02:57]}  Nxe5 {[%clk 0:02:53]} 12. Nxe5 {[%clk 0:02:56]}  Qxe5+ {[%clk 0:02:54]} 13. Qe2 {[%clk 0:02:55]}  Qxe2+ {[%clk 0:02:53]} 14. Bxe2 {[%clk 0:02:55]}  Bf5 {[%clk 0:02:54]} 15. O-O {[%clk 0:02:55]}  O-O {[%clk 0:02:53]} 16. Bf3 {[%clk 0:02:53]}  Rfe8 {[%clk 0:02:52]} 17. Nb3 {[%clk 0:02:53]}  Rac8 {[%clk 0:02:50]} 18. Rad1 {[%clk 0:02:53]}  Be4 {[%clk 0:02:46]} 19. Nd4 {[%clk 0:02:52]}  Bxf3 {[%clk 0:02:44]} 20. gxf3 {[%clk 0:02:52]}  Re7 {[%clk 0:02:42]} 21. Rd2 {[%clk 0:02:48]}  Rce8 {[%clk 0:02:41]} 22. Rfd1 {[%clk 0:02:48]}  Re1+ {[%clk 0:02:41]} 23. Kg2 {[%clk 0:02:48]}  Rxd1 {[%clk 0:02:42]} 24. Rxd1 {[%clk 0:02:49]}  h6 {[%clk 0:02:41]} 25. Nf5 {[%clk 0:02:39]}  Rd8 {[%clk 0:02:37]} 26. g4 {[%clk 0:02:16]}  Kf8 {[%clk 0:02:34]} 27. Rd4 {[%clk 0:02:11]}  Rd7 {[%clk 0:02:15]} 28. Ne3 {[%clk 0:02:09]}  g6 {[%clk 0:02:12]} 29. Ra4 {[%clk 0:01:53]}  b6 {[%clk 0:02:09]} 30. Nc2 {[%clk 0:01:52]}  Ke7 {[%clk 0:02:06]} 31. Nd4 {[%clk 0:01:51]}  Ke8 {[%clk 0:02:02]} 32. Nc6 {[%clk 0:01:48]}  a5 {[%clk 0:02:02]} 33. Ne5 {[%clk 0:01:44]}  Re7 {[%clk 0:02:01]} 34. Nd3 {[%clk 0:01:41]}  Re2 {[%clk 0:01:59]} 35. b4 {[%clk 0:01:38]}  Rd2 {[%clk 0:01:55]} 36. Nf4 {[%clk 0:01:33]}  axb4 {[%clk 0:01:51]} 37. Rxb4 {[%clk 0:01:33]}  Nd7 {[%clk 0:01:51]} 38. Rb5 {[%clk 0:01:26]}  Rxa2 {[%clk 0:01:45]} 39. Nxd5 {[%clk 0:01:26]}  Rc2 {[%clk 0:01:44]} 40. Nxb6 {[%clk 0:01:21]}  Nxb6 {[%clk 0:01:45]} 41. Rxb6 {[%clk 0:01:22]}  Rxc3 {[%clk 0:01:45]} 42. Rb8+ {[%clk 0:01:22]}  Ke7 {[%clk 0:01:45]} 43. Rb7+ {[%clk 0:01:23]}  Kf6 {[%clk 0:01:46]} 44. Kg3 {[%clk 0:01:24]}  Kg7 {[%clk 0:01:45]} 45. Rb6 {[%clk 0:01:24]}  Rc4 {[%clk 0:01:45]} 46. f4 {[%clk 0:01:23]}  h5 {[%clk 0:01:42]} 47. gxh5 {[%clk 0:01:22]}  gxh5 {[%clk 0:01:43]} 48. Rb5 {[%clk 0:01:21]}  Kg6 {[%clk 0:01:39]} 49. Rg5+ {[%clk 0:01:21]}  Kh6 {[%clk 0:01:39]} 50. Rf5 {[%clk 0:01:20]}  Kg6 {[%clk 0:01:40]} 51. Rg5+ {[%clk 0:01:19]}  Kh6 {[%clk 0:01:40]} 52. Rd5 {[%clk 0:01:18]}  f6 {[%clk 0:01:36]} 53. Rd8 {[%clk 0:01:15]}  Kg6 {[%clk 0:01:35]} 54. Rg8+ {[%clk 0:01:14]}  Kh6 {[%clk 0:01:35]} 55. f3 {[%clk 0:01:13]}  Kh7 {[%clk 0:01:29]} 56. Rf8 {[%clk 0:01:10]}  Kg6 {[%clk 0:01:29]} 57. Rb8 {[%clk 0:01:07]}  h4+ {[%clk 0:01:22]} 58. Kg4 {[%clk 0:00:56]}  f5+ {[%clk 0:01:22]} 59. Kxh4 {[%clk 0:00:56]}  Rxf4+ {[%clk 0:01:22]} 60. Kg3 {[%clk 0:00:57]}  Rc4 {[%clk 0:01:21]} 61. Rg8+ {[%clk 0:00:57]}  Kf6 {[%clk 0:01:20]} 62. Rf8+ {[%clk 0:00:57]}  Kg6 {[%clk 0:01:20]} 63. Rb8 {[%clk 0:00:57]}  Rc1 {[%clk 0:01:15]} 64. Rb6+ {[%clk 0:00:56]}  Kg5 {[%clk 0:01:08]} 65. f4+ {[%clk 0:00:53]}  Kh5 {[%clk 0:01:08]} 66. Rb3 {[%clk 0:00:49]}  Rg1+ {[%clk 0:01:05]} 67. Kf2 {[%clk 0:00:48]}  Rg4 {[%clk 0:01:02]} 68. Rf3 {[%clk 0:00:46]}  Kh4 {[%clk 0:01:00]} 69. Ke2 {[%clk 0:00:23]}  Rg2+ {[%clk 0:00:58]} 70. Ke3 {[%clk 0:00:23]}  Kg4 {[%clk 0:00:56]} 71. Rf1 {[%clk 0:00:23]}  Kg3 {[%clk 0:00:44]} 72. Rf3+ {[%clk 0:00:22]}  Kg4 {[%clk 0:00:44]} 73. Rf1 {[%clk 0:00:23]}  Rg3+ {[%clk 0:00:44]} 74. Ke2 {[%clk 0:00:20]}  Kh3 {[%clk 0:00:41]} 75. Rf3 {[%clk 0:00:19]}  Kg2 {[%clk 0:00:38]} 76. Rxg3+ {[%clk 0:00:19]}  Kxg3 {[%clk 0:00:39]} 77. Ke3 {[%clk 0:00:20]}  Kg4 {[%clk 0:00:39]} 78. Ke2 {[%clk 0:00:19]}  Kxf4 {[%clk 0:00:39]} 79. Kf2 {[%clk 0:00:20]}  Ke4 {[%clk 0:00:38]} 80. Ke2 {[%clk 0:00:21]}  f4 {[%clk 0:00:35]} 81. Kf2 {[%clk 0:00:21]}  f3 {[%clk 0:00:34]} 82. Kf1 {[%clk 0:00:21]}  Kf5 {[%clk 0:00:31]} 83. Kf2 {[%clk 0:00:21]}  Kf4 {[%clk 0:00:32]} 84. Kf1 {[%clk 0:00:21]}  Ke3 {[%clk 0:00:31]} 85. Ke1 {[%clk 0:00:22]}  Ke4 {[%clk 0:00:31]} 86. Kf2 {[%clk 0:00:22]}  Kf4 {[%clk 0:00:31]} 87. Kf1 {[%clk 0:00:23]}  Kg3 {[%clk 0:00:31]} 88. Kg1 {[%clk 0:00:23]}  Kg4 {[%clk 0:00:31]} 89. Kf2 {[%clk 0:00:24]}  Kf4 {[%clk 0:00:31]} 1/2-1/2


[Site "https://www.chess.com"]